bitfinex/quotes_SOLUSD_20250625
["timestamp","ask_amount","ask_price","bid_price","bid_amount"]
[1750812960249,9.16100529,146.44,146.4,18.64964886]
[1750812960407,9.16100529,146.44,146.37,0.68297705]
[1750812960408,9.16100529,146.43,146.37,0.68297705]
[1750812960617,9.16100529,146.41,146.38,18.64964886]
[1750812960929,9.16100529,146.4,146.37,26.0]
[1750812961111,9.16100529,146.4,146.36,6.83241311]
[1750812961112,9.16100529,146.39,146.36,32.83241311]
[1750812961314,9.16100529,146.38,146.36,32.83241311]
[1750812961523,9.16100529,146.37,146.31,6.0221]
[1750812961706,2.21669783,146.4,146.33,18.64964886]
[1750812961912,9.16100529,146.35,146.32,18.64964886]
[1750812962224,11.37770312,146.4,146.24,20.53555027]
[1750812962225,9.16100529,146.33,146.24,20.53555027]
[1750812962407,9.16100529,146.27,146.25,6.83716381]
[1750812962607,1.5336,146.35,146.16,10.0]
[1750812962608,9.16100529,146.26,146.19,9.16100529]
[1750812962828,9.16100529,146.24,146.2,9.16100529]
[1750812963035,9.16100529,146.27,146.22,9.16100529]
[1750812963225,9.16100529,146.27,146.22,18.64964886]
[1750812963430,6.86,146.3,146.22,9.16100529]
[1750812963621,9.16100529,146.26,146.22,9.16100529]
[1750812963957,9.16100529,146.26,146.23,6.83854202]
[1750812964230,6.86,146.31,146.23,6.83854202]
[1750812964841,9.16100529,146.28,146.23,15.99954731]
[1750812966738,9.16100529,146.27,146.23,6.83854202]
[1750812966929,9.16100529,146.26,146.23,6.83854202]
[1750812967313,0.68357372,146.29,146.23,6.83854202]
[1750812967512,9.16100529,146.27,146.23,6.83854202]
[1750812967729,9.16100529,146.26,146.23,6.83854202]
[1750812968113,5.06829703,146.3,146.23,15.99954731]
[1750812968318,12.61182241,146.31,146.23,6.83854202]
[1750812968522,9.16100529,146.28,146.23,15.99954731]
[1750812968744,9.16100529,146.27,146.23,15.99954731]
[1750812969443,9.16100529,146.27,146.23,6.83854202]
[1750812969646,9.16100529,146.27,146.23,15.99954731]
[1750812970149,5.76562654,146.3,146.23,6.83854202]
[1750812970348,9.16100529,146.27,146.23,15.99954731]
[1750812970651,5.76562654,146.3,146.23,15.99954731]
[1750812970844,9.16100529,146.29,146.25,9.16100529]
[1750812971029,9.16100529,146.29,146.23,6.83854202]
[1750812971030,9.16100529,146.28,146.23,15.99954731]
[1750812971230,9.16100529,146.27,146.23,6.83854202]
[1750812971431,9.16100529,146.26,146.23,6.83854202]
[1750812971642,9.16100529,146.27,146.23,15.99954731]
[1750812972849,5.76931488,146.3,146.24,9.16100529]
[1750812973164,9.16100529,146.31,146.24,26.0]
[1750812973328,9.16100529,146.29,146.23,6.83854202]
[1750812973528,9.16100529,146.29,146.25,9.16100529]
[1750812973859,9.16100529,146.29,146.23,6.83854202]
[1750812973860,9.16100529,146.3,146.26,9.16100529]
[1750812974032,5.08545029,146.31,146.26,9.16100529]
[1750812974357,9.16100529,146.3,146.27,6.8366719]
[1750812974853,14.24645558,146.31,146.27,6.8366719]
[1750812975443,9.16100529,146.3,146.27,6.8366719]
[1750812975647,9.16100529,146.3,146.26,6.83697621]
[1750812975845,5.08867242,146.31,146.26,6.83697621]
[1750812976043,9.16100529,146.3,146.26,6.83697621]
[1750812976242,8.16100529,146.3,146.26,6.83697621]
[1750812977057,9.16100529,146.3,146.26,6.83697621]
[1750812977262,5.09034436,146.31,146.28,9.16100529]
[1750812977439,9.16100529,146.33,146.28,9.16100529]
[1750812977644,9.16100529,146.32,146.28,9.16100529]
[1750812977846,9.16100529,146.31,146.27,9.16100529]
[1750812978047,9.16100529,146.31,146.27,35.16100529]
[1750812978566,14.25134965,146.32,146.27,35.16100529]
[1750812978766,9.16100529,146.32,146.27,35.16100529]
[1750812978943,14.25134965,146.32,146.27,41.99722461]
[1750812979136,5.09034436,146.32,146.28,9.16100529]
[1750812979343,4.09034436,146.32,146.28,9.16100529]
[1750812979641,9.16100529,146.32,146.28,9.16100529]
[1750812979843,9.16100529,146.32,146.27,41.99722461]
[1750812981269,0.68341121,146.33,146.27,41.99722461]
[1750812981498,9.16100529,146.32,146.27,41.99722461]
[1750812981675,0.68341121,146.33,146.24,6.83807439]
[1750812981972,0.68341121,146.33,146.26,9.16100529]
[1750812982172,9.16100529,146.31,146.27,9.16100529]
[1750812982463,0.68341121,146.33,146.25,5.50666227]
[1750812982464,5.50666227,146.3,146.25,5.50666227]
[1750812982672,5.50666227,146.29,146.24,38.34473666]
[1750812982846,2.39187837,146.33,146.24,38.34473666]
[1750812983045,5.50666227,146.28,146.24,32.83807439]
[1750812983259,6.86,146.3,146.26,10.0]
[1750812983552,5.50666227,146.28,146.26,10.0]
[1750812983757,5.50666227,146.28,146.25,10.0]
[1750812983955,12.36666227,146.32,146.26,10.0]
[1750812984271,9.18877936,146.27,146.21,10.0]
[1750812984458,9.18877936,146.24,146.21,10.0]
[1750812984970,0.68348028,146.31,146.23,9.18877936]
[1750812985174,9.18877936,146.29,146.24,19.18877936]
[1750812985466,9.18877936,146.28,146.24,19.18877936]
[1750812985662,9.18877936,146.28,146.24,10.0]
[1750812985870,9.18877936,146.27,146.24,10.0]
[1750812986248,9.18877936,146.27,146.24,16.83796251]
[1750812986549,9.18877936,146.28,146.24,16.83796251]
[1750812986750,9.18877936,146.27,146.24,16.83796251]
[1750812986945,9.18877936,146.26,146.23,46.73839351]
[1750812987573,9.18877936,146.29,146.24,19.18877936]
[1750812987760,2.19674167,146.3,146.24,10.0]
[1750812987953,9.18877936,146.29,146.24,19.18877936]
[1750812988169,10.70197936,146.3,146.25,19.18877936]
[1750812988373,0.6834865,146.31,146.26,19.18877936]
[1750812988691,0.68344518,146.32,146.26,19.18877936]
[1750812989011,9.18877936,146.31,146.27,9.18877936]
[1750812989974,9.18877936,146.31,146.27,16.836535]
[1750812990182,0.6834438,146.32,146.27,16.836535]
[1750812990183,1.5132,146.33,146.3,10.0]
[1750812990378,10.70197936,146.33,146.29,10.0]
[1750812990583,9.18877936,146.32,146.27,55.94531436]
[1750812990760,9.18877936,146.31,146.27,39.92]
[1750812991267,9.18877936,146.31,146.27,29.92]
[1750812991467,9.18877936,146.3,146.27,29.92]
[1750812991685,9.18877936,146.3,146.27,39.92]
[1750812992191,9.18877936,146.3,146.27,29.92]
[1750812992681,9.18877936,146.29,146.27,29.92]
[1750812992892,9.18877936,146.28,146.27,29.92]
[1750812993194,9.18877936,146.28,146.25,16.83755098]
[1750812993696,9.18877936,146.26,146.24,29.86]
[1750812994483,9.18877936,146.26,146.24,39.86]
[1750812994784,9.18877936,146.27,146.24,46.69807186]
[1750812995175,9.18877936,146.26,146.24,39.86]
[1750812995565,9.18877936,146.26,146.24,29.86]
[1750812995981,1.7087007,146.31,146.24,29.86]
[1750812996295,1.7087007,146.31,146.24,46.69797815]
[1750812996296,9.18877936,146.27,146.24,46.69797815]
[1750812996589,9.18877936,146.26,146.24,39.86]
[1750812997278,9.18877936,146.26,146.24,29.86]
[1750812997478,0.68352699,146.3,146.24,36.69802353]
[1750812997678,9.18877936,146.27,146.24,135.39802353]
[1750812998489,9.18877936,146.26,146.24,135.39802353]
[1750812999899,9.18877936,146.26,146.24,88.7]
[1750813000081,9.18877936,146.26,146.24,98.7]
[1750813001893,9.18877936,146.26,146.24,88.7]
[1750813002193,0.68363405,146.28,146.24,88.7]
[1750813002488,9.18877936,146.26,146.24,88.7]
[1750813002691,9.18877936,146.26,146.23,135.33834163]
[1750813003193,9.18877936,146.27,146.24,10.0]
[1750813003391,7.48531928,146.31,146.24,10.0]
[1750813003567,9.18877936,146.27,146.24,10.0]
[1750813004210,7.48531928,146.31,146.24,16.83803577]
[1750813004385,9.18877936,146.28,146.24,16.83803577]
[1750813005373,9.87240341,146.28,146.24,16.83803577]
[1750813006280,6.19306037,146.28,146.24,16.83803577]
[1750813006594,5.50943632,146.27,146.23,140.84777597]
[1750813007597,6.19305677,146.28,146.23,140.84777597]
[1750813008092,6.19305677,146.28,146.24,10.0]
[1750813008295,5.8002181,146.29,146.25,29.66]
[1750813008591,6.19302449,146.29,146.25,29.66]
[1750813009080,5.50943632,146.28,146.25,29.66]
[1750813009887,6.19302449,146.29,146.25,29.66]
[1750813010595,5.50943632,146.28,146.25,29.66]
[1750813010791,5.11657355,146.3,146.25,29.66]
[1750813010990,5.50943632,146.3,146.26,5.50943632]
[1750813011299,5.50943632,146.31,146.27,29.58]
[1750813011595,1.5132,146.33,146.28,15.50943632]
[1750813011897,5.11607254,146.32,146.29,39.58]
[1750813012102,5.50943632,146.33,146.29,45.08943632]
[1750813012272,5.50943632,146.34,146.29,45.08943632]
[1750813012468,5.1146084,146.33,146.3,5.50943632]
[1750813012683,10.6240026,146.35,146.32,10.0]
[1750813012971,5.50943632,146.33,146.31,29.6]
[1750813013775,10.62286223,146.32,146.29,29.62]
[1750813014099,0.68339016,146.33,146.26,46.45710811]
[1750813014100,5.50943632,146.3,146.26,46.45710811]
[1750813014403,5.50943632,146.29,146.26,39.62]
[1750813014773,5.50943632,146.29,146.26,29.62]
[1750813014980,5.50943632,146.29,146.26,39.62]
[1750813015191,5.50943632,146.29,146.26,46.45704173]
[1750813015393,5.50943632,146.29,146.26,36.45704173]
[1750813016201,5.50943632,146.29,146.26,46.45704173]
[1750813016698,5.50943632,146.29,146.26,39.62]
[1750813016881,5.50943632,146.29,146.26,29.62]
[1750813017276,5.50943632,146.29,146.26,46.45699841]
[1750813017587,5.50943632,146.29,146.26,36.45699841]
[1750813017897,5.11438594,146.3,146.26,36.45699841]
[1750813018093,10.62382226,146.3,146.26,46.45699841]
[1750813018298,5.50943632,146.29,146.26,46.45699841]
[1750813018482,5.11438594,146.3,146.26,46.45699841]
[1750813018800,5.50943632,146.3,146.27,10.0]
[1750813019033,5.50943632,146.3,146.28,29.56]
[1750813019207,5.50943632,146.29,146.28,29.56]
[1750813019409,5.50943632,146.29,146.26,46.37699841]
[1750813019594,5.50943632,146.28,146.26,29.54]
[1750813020106,5.50943632,146.28,146.26,39.54]
[1750813020280,5.50943632,146.27,146.26,29.54]
[1750813020992,5.50943632,146.27,146.24,88.7]
[1750813021300,5.50943632,146.26,146.24,125.07795661]
[1750813021512,5.50943632,146.27,146.25,10.0]
[1750813022780,5.50943632,146.27,146.25,16.83749397]
[1750813022986,0.68354141,146.3,146.25,16.83749397]
[1750813022987,5.50943632,146.29,146.26,29.54]
[1750813024099,5.11504757,146.3,146.26,46.37692493]
[1750813024304,5.50943632,146.29,146.26,46.37692493]
[1750813024508,5.50943632,146.3,146.26,46.37692493]
[1750813024814,5.50943632,146.3,146.28,10.0]
[1750813025110,5.50943632,146.3,146.28,39.52]
[1750813025297,5.11544253,146.31,146.28,39.52]
[1750813025491,0.68340745,146.33,146.28,39.52]
[1750813025492,5.11544253,146.32,146.28,39.52]
[1750813025698,5.50943632,146.3,146.28,46.3560113]
[1750813026210,5.50943632,146.32,146.28,46.3560113]
[1750813026710,5.50943632,146.31,146.28,46.3560113]
[1750813028005,10.62443756,146.32,146.3,10.0]
[1750813028218,5.50943632,146.31,146.3,29.48]
[1750813029624,5.50943632,146.31,146.26,11.94163632]
[1750813029625,6.19292077,146.31,146.26,16.4322]
[1750813029922,5.11412705,146.3,146.28,29.48]
[1750813030916,5.50943632,146.29,146.28,29.48]
[1750813031297,5.1147813,146.3,146.28,29.48]
[1750813031503,5.50943632,146.3,146.28,29.48]
[1750813031689,5.50943632,146.29,146.28,29.48]
[1750813033296,5.11481944,146.29,146.28,29.48]
[1750813033508,5.50943632,146.29,146.28,29.48]
[1750813034218,0.6834871,146.31,146.28,29.48]
[1750813034421,5.50943632,146.29,146.28,29.48]
[1750813039221,6.19301004,146.29,146.26,29.38]
[1750813039403,5.50943632,146.27,146.26,29.38]
[1750813039797,5.50943632,146.27,146.23,16.83835891]
[1750813040003,5.50943632,146.25,146.24,29.38]
[1750813040424,5.50943632,146.25,146.23,118.1]
[1750813040729,5.50943632,146.25,146.23,88.7]
[1750813041030,5.50943632,146.24,146.22,29.38]
[1750813041232,5.50943632,146.23,146.18,16.4839]
[1750813041409,5.50943632,146.21,146.18,10.0]
[1750813041603,5.50943632,146.22,146.19,29.38]
[1750813041804,5.11479205,146.26,146.2,10.0]
[1750813042030,5.50943632,146.22,146.2,39.38]
[1750813042203,5.50943632,146.22,146.2,10.0]
[1750813042404,5.50943632,146.22,146.2,29.36]
[1750813043330,5.50943632,146.21,146.2,29.36]
[1750813043633,5.50943632,146.21,146.18,29.34]
[1750813043816,5.50943632,146.2,146.16,22.35110331]
[1750813044127,5.50943632,146.2,146.17,29.34]
[1750813044532,5.50943632,146.2,146.17,36.1813138]
[1750813045035,5.50943632,146.2,146.17,29.34]
[1750813045216,6.19343309,146.2,146.17,29.34]
[1750813045746,6.19343309,146.2,146.15,32.95041335]
[1750813045912,5.50943632,146.18,146.15,17.44097703]
[1750813046232,5.50943632,146.19,146.16,39.3]
[1750813046434,5.50943632,146.19,146.17,29.3]
[1750813046809,5.50943632,146.18,146.15,17.44097703]
[1750813047012,5.50943632,146.18,146.15,34.28322303]
[1750813047213,5.50943632,146.18,146.16,29.3]
[1750813047414,5.50943632,146.19,146.16,29.3]
[1750813048534,5.50943632,146.19,146.17,29.28]
[1750813048835,1.6515,146.22,146.17,29.28]
[1750813049142,5.50943632,146.24,146.19,15.50943632]
[1750813049325,5.50943632,146.24,146.2,29.26]
[1750813049711,5.50943632,146.23,146.2,29.26]
[1750813049911,2.29506068,146.25,146.2,29.26]
[1750813050126,5.50943632,146.23,146.2,29.26]
[1750813051415,5.50943632,146.22,146.2,29.26]
[1750813052223,6.19330071,146.23,146.2,29.26]
[1750813053743,5.50943632,146.23,146.2,29.26]
[1750813054041,6.19329629,146.23,146.2,29.26]
[1750813054230,5.50943632,146.22,146.2,29.26]
[1750813054637,5.50943632,146.23,146.2,29.26]
[1750813054832,5.50943632,146.24,146.2,29.26]
[1750813055943,6.19320586,146.25,146.21,10.0]
[1750813056144,5.50943632,146.24,146.2,51.60920753]
[1750813056843,5.50943632,146.24,146.2,46.09977121]
[1750813058845,6.19324915,146.24,146.2,46.09977121]
[1750813059545,5.50943632,146.24,146.2,46.09977121]
[1750813060448,5.50943632,146.24,146.21,10.0]
[1750813060650,5.50943632,146.24,146.22,29.16]
[1750813061648,5.50943632,146.24,146.2,16.83977121]
[1750813061649,5.50943632,146.23,146.2,29.16]
[1750813061847,5.50943632,146.22,146.2,29.16]
[1750813062551,5.50943632,146.21,146.17,10.0]
[1750813062843,5.50943632,146.21,146.18,29.14]
[1750813063143,0.6838542,146.23,146.18,29.14]
[1750813063144,5.50943632,146.2,146.18,29.14]
[1750813064080,1.651,146.22,146.15,17.44097703]
[1750813064081,5.50943632,146.19,146.15,17.44097703]
[1750813064226,5.50943632,146.18,146.16,29.14]
[1750813064921,6.19348839,146.19,146.16,29.14]
[1750813065944,5.50943632,146.18,146.16,29.14]
[1750813066829,5.50943632,146.19,146.16,29.14]
[1750813067352,5.50943632,146.18,146.16,29.14]
[1750813069933,6.19349505,146.19,146.16,29.14]
[1750813072044,0.68394774,146.21,146.16,29.14]
[1750813072241,5.50943632,146.19,146.16,29.14]
[1750813074160,5.50943632,146.19,146.16,39.14]
[1750813074351,6.19349311,146.19,146.16,29.14]
[1750813074539,0.68405679,146.19,146.16,29.14]
[1750813074739,5.50943632,146.19,146.16,45.98172518]
[1750813074937,5.50943632,146.19,146.16,39.14]
[1750813075548,5.50943632,146.2,146.16,39.14]
[1750813076152,6.19346971,146.2,146.16,39.14]
[1750813076350,5.50943632,146.19,146.16,29.14]
[1750813076554,5.50943632,146.19,146.16,39.14]
[1750813077552,6.19346971,146.2,146.16,51.49123225]
[1750813078066,5.50943632,146.19,146.16,39.14]
[1750813078246,5.50943632,146.19,146.16,45.98171702]
[1750813079165,5.50943632,146.21,146.17,15.50943632]
[1750813079460,5.50943632,146.21,146.18,29.02]
[1750813080861,6.19339283,146.21,146.18,29.02]
[1750813081064,5.50943632,146.2,146.18,29.02]
[1750813081366,5.50943632,146.19,146.18,29.02]
[1750813082144,6.19351947,146.19,146.16,29.0]
[1750813082346,5.50943632,146.18,146.16,29.0]
[1750813083252,6.19356438,146.18,146.15,17.44097703]
[1750813083457,5.50943632,146.16,146.15,17.44097703]
[1750813084546,5.50943632,146.16,146.11,29.0]
[1750813084849,5.50943632,146.13,146.11,29.0]
[1750813085154,5.50943632,146.14,146.1,10.0]
[1750813085462,5.50943632,146.14,146.11,29.0]
[1750813086170,6.19371518,146.14,146.11,29.0]
[1750813086545,6.19371518,146.14,146.11,39.0]
[1750813086746,6.19371518,146.14,146.11,29.0]
[1750813087147,5.50943632,146.14,146.11,29.0]
[1750813087458,6.19371864,146.14,146.11,39.0]
[1750813087657,5.11217948,146.17,146.12,10.0]
[1750813087862,5.50943632,146.16,146.12,10.0]
[1750813089260,5.50943632,146.16,146.12,16.84347216]
[1750813091371,5.50943632,146.16,146.12,22.35290848]
[1750813092071,5.50943632,146.19,146.15,10.0]
[1750813092278,5.50943632,146.19,146.16,28.92]
[1750813092964,5.50943632,146.18,146.16,28.92]
[1750813093472,0.68402263,146.2,146.16,28.92]
[1750813093678,5.50943632,146.19,146.16,38.92]
[1750813094266,5.50943632,146.18,146.16,38.92]
[1750813096385,5.11217948,146.21,146.14,127.56]
[1750813096386,5.50943632,146.17,146.14,127.56]
[1750813096585,5.50943632,146.16,146.14,127.56]
[1750813096775,5.50943632,146.16,146.14,38.86]
[1750813097079,5.50943632,146.16,146.15,10.0]
[1750813097294,5.50943632,146.17,146.15,10.0]
[1750813097466,5.50943632,146.17,146.14,38.86]
[1750813099380,5.50943632,146.16,146.14,28.86]
[1750813099677,5.50943632,146.17,146.15,10.0]
[1750813099862,5.50943632,146.17,146.16,28.84]
[1750813102785,0.68409883,146.18,146.16,28.84]
[1750813102987,5.50943632,146.17,146.16,28.84]
[1750813105792,5.50943632,146.18,146.16,28.84]
[1750813105974,10.6216158,146.19,146.16,45.68172121]
[1750813106173,5.50943632,146.19,146.16,45.68172121]
[1750813106786,5.50943632,146.18,146.16,38.84]
[1750813108588,5.50943632,146.18,146.16,28.84]
[1750813108893,6.19352623,146.18,146.16,28.84]
[1750813109269,5.50943632,146.17,146.16,28.84]
[1750813110867,5.50943632,146.18,146.16,28.84]
[1750813111078,6.19349611,146.19,146.16,38.84]
[1750813111285,11.30567559,146.19,146.16,38.84]
[1750813111485,6.19349611,146.19,146.16,28.84]
[1750813111683,6.19349611,146.19,146.16,38.84]
[1750813111684,11.30567559,146.19,146.16,38.84]
[1750813111885,5.50943632,146.18,146.16,38.84]
[1750813113583,5.50943632,146.18,146.16,28.84]
[1750813113792,5.11217948,146.19,146.16,45.68154999]
[1750813113981,5.11217948,146.21,146.19,10.0]
[1750813114171,5.50943632,146.22,146.2,28.82]
[1750813116606,5.50943632,146.21,146.2,28.82]
[1750813119375,0.6839156,146.22,146.2,28.82]
[1750813119584,5.50943632,146.21,146.2,28.82]
[1750813120597,6.19338406,146.21,146.2,28.82]
[1750813123595,10.62284794,146.22,146.2,28.82]
[1750813123802,5.50943632,146.22,146.2,28.82]
[1750813125301,5.50943632,146.21,146.2,28.82]
[1750813126507,0.68390835,146.22,146.2,28.82]
[1750813126698,0.68390835,146.22,146.18,10.0]
[1750813126699,5.50943632,146.21,146.18,10.0]
[1750813126900,5.50943632,146.2,146.19,28.72]
[1750813127882,0.68390835,146.22,146.19,28.72]
[1750813128083,5.50943632,146.21,146.19,28.72]
[1750813133289,5.50943632,146.21,146.19,38.72]
[1750813134011,5.50943632,146.21,146.19,28.72]
[1750813134206,5.50943632,146.21,146.19,38.72]
[1750813135107,5.50943632,146.21,146.19,28.72]
[1750813136602,5.50943632,146.2,146.19,28.72]
[1750813136802,5.11341162,146.23,146.19,28.72]
[1750813136999,5.50943632,146.2,146.19,28.72]
[1750813137407,5.11341162,146.22,146.19,28.72]
[1750813137610,5.50943632,146.2,146.19,28.72]
[1750813138813,0.68390976,146.22,146.19,38.72]
[1750813139001,5.50943632,146.21,146.19,38.72]
[1750813139806,5.50943632,146.21,146.19,28.72]
[1750813140008,10.62253202,146.21,146.19,28.72]
[1750813141524,5.50943632,146.2,146.17,88.7]
[1750813141720,5.50943632,146.18,146.17,28.6]
[1750813143807,5.50943632,146.18,146.15,10.0]
[1750813144008,5.50943632,146.18,146.14,95.5425629]
[1750813144009,11.01887264,146.16,146.11,10.0]
[1750813144218,5.50943632,146.13,146.11,10.0]
[1750813144615,5.50943632,146.12,146.11,10.0]
[1750813144822,5.50943632,146.12,146.1,10.0]
[1750813145130,1.6507,146.14,146.08,6.84539094]
[1750813145131,5.50943632,146.14,146.11,10.0]
[1750813145309,5.50943632,146.14,146.11,38.58]
[1750813145510,10.61633488,146.16,146.12,10.0]
[1750813145721,5.50943632,146.16,146.13,28.58]
[1750813146228,5.10689856,146.17,146.14,10.0]
[1750813146420,5.50943632,146.17,146.14,10.0]
[1750813147023,26.0,146.21,146.16,10.0]
[1750813147024,11.30039016,146.19,146.16,10.0]
[1750813147212,5.10689856,146.18,146.16,10.0]
[1750813147413,6.1934916,146.19,146.16,10.0]
[1750813147613,11.30039016,146.19,146.16,10.0]
[1750813147813,6.1934916,146.19,146.16,10.0]
[1750813148107,5.50943632,146.18,146.16,10.0]
[1750813149203,0.68409329,146.18,146.16,10.0]
[1750813149409,5.50943632,146.17,146.16,10.0]
[1750813150120,5.50943632,146.17,146.15,38.58]
[1750813150630,5.50943632,146.16,146.15,28.58]
[1750813151531,5.50943632,146.16,146.15,38.58]
[1750813151715,5.50943632,146.16,146.15,28.58]
[1750813152834,6.19361803,146.16,146.15,28.58]
[1750813153131,5.50943632,146.16,146.15,28.58]
[1750813153720,5.79099522,146.18,146.15,38.58]
[1750813153926,5.50943632,146.16,146.15,38.58]
[1750813154556,5.50943632,146.16,146.15,28.58]
[1750813154743,0.68409666,146.18,146.15,28.58]
[1750813154944,5.50943632,146.16,146.15,38.58]
[1750813155463,0.68409666,146.18,146.15,38.58]
[1750813155666,5.50943632,146.17,146.15,28.58]
[1750813155844,5.50943632,146.17,146.15,38.58]
[1750813156661,5.79096127,146.19,146.15,38.58]
[1750813156963,5.50943632,146.19,146.15,45.42223895]
[1750813157143,10.61633488,146.19,146.15,45.42223895]
[1750813157345,10.61633488,146.19,146.16,10.0]
[1750813157543,10.61633488,146.19,146.17,28.58]
[1750813158146,5.10689856,146.19,146.17,28.58]
[1750813158342,5.50943632,146.2,146.17,45.42132831]
[1750813159155,5.50943632,146.2,146.17,38.58]
[1750813159857,5.50943632,146.21,146.18,10.0]
[1750813160057,5.50943632,146.21,146.19,28.58]
[1750813161445,5.50943632,146.2,146.19,28.58]
[1750813162156,5.50943632,146.21,146.19,28.58]
[1750813162467,5.79073881,146.24,146.19,45.42038989]
[1750813162677,5.10689856,146.24,146.2,10.0]
[1750813162845,10.61633488,146.25,146.22,10.0]
[1750813163171,5.50943632,146.24,146.23,28.58]
[1750813165172,2.21042881,146.26,146.23,28.58]
[1750813165466,5.50943632,146.24,146.23,28.58]
[1750813168373,0.68372846,146.26,146.23,28.58]
[1750813168554,5.50943632,146.24,146.23,28.58]
[1750813169248,5.50943632,146.25,146.23,28.58]
[1750813171077,5.50943632,146.24,146.23,28.58]
[1750813171374,0.68372709,146.26,146.23,28.58]
[1750813171673,5.50943632,146.24,146.23,28.58]
[1750813172473,0.68366719,146.27,146.23,28.58]
[1750813172682,0.68362946,146.28,146.23,35.41850018]
[1750813172851,0.68362946,146.28,146.24,10.0]
[1750813172852,5.50943632,146.25,146.24,10.0]
[1750813173166,5.50943632,146.25,146.24,28.58]
[1750813174082,5.50943632,146.25,146.22,28.58]
[1750813174376,5.50943632,146.23,146.2,28.58]
[1750813174581,5.50943632,146.21,146.2,28.58]
[1750813175079,5.50943632,146.21,146.18,6.84066688]
[1750813175080,5.50943632,146.21,146.18,10.0]
[1750813175264,5.50943632,146.19,146.17,6.38]
[1750813175461,0.6838542,146.23,146.18,28.58]
[1750813175787,5.50943632,146.19,146.18,28.58]
[1750813176765,5.50943632,146.19,146.18,28.56]
[1750813177570,5.50943632,146.2,146.18,38.56]
[1750813177887,5.50943632,146.19,146.18,28.56]
[1750813178177,5.50943632,146.19,146.17,6.38]
[1750813178371,5.50943632,146.18,146.15,10.0]
[1750813178569,7.90276234,146.24,146.15,10.0]
[1750813178570,5.50943632,146.17,146.16,28.58]
[1750813178766,0.68405857,146.19,146.16,28.58]
[1750813178965,5.50943632,146.17,146.16,28.58]
[1750813179870,5.50943632,146.17,146.16,38.58]
[1750813180486,5.50943632,146.17,146.16,28.58]
[1750813182879,5.50943632,146.18,146.16,38.58]
[1750813184504,5.50943632,146.18,146.17,28.58]
[1750813185487,0.6838542,146.23,146.17,45.42111452]
[1750813185683,0.6838542,146.23,146.17,50.93055084]
[1750813185893,5.50943632,146.21,146.17,40.93055084]
[1750813186102,5.50943632,146.21,146.17,50.93055084]
[1750813186304,5.50943632,146.2,146.17,45.42111452]
[1750813186778,5.50943632,146.19,146.17,38.58]
[1750813187705,5.50943632,146.2,146.17,45.42132238]
[1750813188115,0.68387615,146.23,146.18,10.0]
[1750813188320,5.50943632,146.21,146.19,28.58]
[1750813189600,5.50943632,146.21,146.19,38.58]
[1750813194309,5.50943632,146.21,146.2,10.0]
[1750813195424,5.50943632,146.21,146.19,35.42030739]
[1750813195425,5.50943632,146.21,146.19,28.58]
[1750813195598,5.50943632,146.2,146.19,28.58]
[1750813195801,5.50943632,146.2,146.19,38.58]
[1750813196317,5.50943632,146.2,146.19,28.58]
[1750813196485,5.50943632,146.2,146.19,38.58]
[1750813198594,0.68390871,146.22,146.19,38.58]
[1750813198595,5.50943632,146.21,146.19,38.58]
[1750813200017,5.50943632,146.2,146.19,28.58]
[1750813200394,5.50943632,146.2,146.17,10.0]
[1750813200713,5.50943632,146.18,146.17,28.56]
[1750813201097,5.50943632,146.18,146.17,38.56]
[1750813201820,5.50943632,146.18,146.17,28.56]
[1750813202700,5.79079957,146.22,146.17,45.40134911]
[1750813202894,5.50943632,146.19,146.17,45.40134911]
[1750813203210,5.50943632,146.2,146.17,45.40134911]
[1750813203889,5.79076082,146.23,146.17,45.40134911]
[1750813203890,5.50943632,146.21,146.17,45.40134911]
[1750813204513,5.50943632,146.22,146.2,10.0]
[1750813204718,5.50943632,146.22,146.2,45.39979052]
[1750813205717,5.50943632,146.23,146.2,45.39979052]
[1750813207214,2.28448102,146.25,146.2,45.39979052]
[1750813207417,5.50943632,146.23,146.2,45.39979052]
[1750813208791,7.39137958,146.25,146.2,45.39979052]